fUST/lending_fUST_20240704
["ID","MTS","AMOUNT","RATE_DAILY","PERIOD"]
[331041079,1720030238898,-500.0,0.00014878,2]
[331041081,1720030238908,-500.0,0.00014878,2]
[331041083,1720030238918,-500.0,0.00014878,2]
[331041085,1720030238927,-294.96840538,0.00014878,2]
[331041087,1720030238937,-500.0,0.00014878,2]
[331041089,1720030238947,-477.57192502,0.00014878,2]
[331041091,1720030238956,-500.0,0.00014878,2]
[331041093,1720030238966,-500.0,0.00014878,2]
[331041095,1720030238976,-500.0,0.00014878,2]
[331041097,1720030238986,-500.0,0.00014878,2]
[331041099,1720030238996,-500.0,0.00014878,2]
[331041101,1720030239006,-325.63578997,0.00014878,2]
[331041103,1720030239018,-500.0,0.00014878,2]
[331041105,1720030239029,-500.0,0.00014878,2]
[331041107,1720030239039,-500.0,0.00014878,2]
[331041109,1720030239050,-500.0,0.00014878,2]
[331041110,1720030239059,-500.0,0.00014878,2]
[331041111,1720030239069,-500.0,0.00014878,2]
[331041112,1720030239079,-500.0,0.00014878,2]
[331041113,1720030239089,-500.0,0.00014878,2]
[331041114,1720030239099,-500.0,0.00014878,2]
[331041115,1720030239109,-500.0,0.00014878,2]
[331041116,1720030239120,-500.0,0.00014878,2]
[331041117,1720030239129,-500.0,0.00014878,2]
[331041118,1720030239139,-500.0,0.00014878,2]
[331041119,1720030239149,-500.0,0.00014878,2]
[331041120,1720030239158,-500.0,0.00014878,2]
[331041121,1720030239168,-500.0,0.00014878,2]
[331041122,1720030239178,-289.55800308,0.00014878,2]
[331041123,1720030239187,-500.0,0.00014878,2]
[331041124,1720030239197,-500.0,0.00014878,2]
[331041125,1720030239207,-500.0,0.00014878,2]
[331041126,1720030239217,-631.343948,0.00014879,2]
[331041134,1720030239324,-631.343948,0.00014879,2]
[331041137,1720030239367,-2877.70795216,0.00014879,2]
[331041512,1720030243609,-1422.70739642,0.00014879,2]
[331041514,1720030243619,-63919.1709717,0.00014879,2]
[331041517,1720030243631,-190055.78452772,0.0001488,2]
[331041792,1720030246642,-155.15425322,0.00014779,2]
[331041794,1720030246652,-500.0,0.00014878,2]
[331041795,1720030246664,-500.0,0.00014878,2]
[331041796,1720030246673,-500.0,0.00014878,2]
[331041797,1720030246683,-500.0,0.00014878,2]
[331041798,1720030246692,-500.0,0.00014878,2]
[331041800,1720030246702,-500.0,0.00014878,2]
[331041802,1720030246711,-426.68318699,0.00014878,2]
[331041805,1720030246725,-73.31681301,0.00014878,2]
[331041807,1720030246734,-500.0,0.00014878,2]
[331041809,1720030246744,-379.91889207,0.00014878,2]
[331041868,1720030258314,169.189389,0.00023562,120]
[331041869,1720030269490,1000.0,0.00021,27]
[331041874,1720030487938,153.0,8.701e-05,2]
[331041875,1720030517690,248.19857389,0.00014999,7]
[331041878,1720031027306,153.0,8.542e-05,2]
[331041879,1720031040811,1000.0,0.00015,7]
[331041881,1720031135180,-816.28973237,0.000139,2]
[331041883,1720031232100,-216.80646707,0.000139,2]
[331041884,1720031233118,-383.9623815,0.000139,2]
[331041885,1720031235186,-548.75150781,0.000139,2]
[331041886,1720031235207,-603.90663901,0.000139,2]
[331041887,1720031241158,-79.32010951,0.000139,2]
[331041888,1720031241178,-80.30047577,0.000139,2]
[331041889,1720031243091,-1000.0,0.000139,2]
[331041890,1720031243121,-77.10823752,0.000139,2]
[331041891,1720031243143,-78.64232895,0.00014764,2]
[331041892,1720031252090,-95.92060248,0.00014764,2]
[331041893,1720031252111,-300.0,0.00014862,2]
[331041894,1720031252130,-350.41924565,0.00014863,2]
[331041896,1720031349849,518.17375561,9.999e-05,2]
[331041897,1720031360237,-155.0,0.000138,2]
[331041898,1720031367126,-54.39945007,0.000138,2]
[331041899,1720031410459,200.03411803,9.999e-05,2]
[331041900,1720031410480,154.379404,9.999e-05,2]
[331041901,1720031410500,45.52421933,9.999e-05,2]
[331041902,1720031424610,822.7179361,0.0001212,2]
[331041920,1720031433809,-500.0,0.00014853,2]
[331041921,1720031433818,-400.80826738,0.00014853,2]
[331041922,1720031433829,-99.19173262,0.00014853,2]
[331041923,1720031433839,-500.0,0.00014853,2]
[331041924,1720031433848,-500.0,0.00014853,2]
[331041925,1720031433857,-500.0,0.00014853,2]
[331041926,1720031433866,-500.0,0.00014853,2]
[331041927,1720031433875,-500.0,0.00014853,2]
[331041928,1720031433883,-500.0,0.00014853,2]
[331041929,1720031433892,-500.0,0.00014853,2]
[331041930,1720031433901,-500.0,0.00014853,2]
[331041931,1720031433911,-500.0,0.00014853,2]
[331041932,1720031433919,-217.11539075,0.00014853,2]
[331041964,1720031439599,-282.88460925,0.00014853,2]
[331041965,1720031439608,-500.0,0.00014853,2]
[331041966,1720031439618,-292.03179677,0.00014853,2]
[331041967,1720031439628,-500.0,0.00014853,2]
[331041968,1720031439637,-500.0,0.00014853,2]
[331041969,1720031439647,-500.0,0.00014853,2]
[331041970,1720031439656,-285.31708827,0.00014853,2]
[331041971,1720031439666,-500.0,0.00014853,2]
[331041972,1720031439676,-500.0,0.00014853,2]
[331041973,1720031439685,-500.0,0.00014853,2]
[331041974,1720031439694,-398.73480184,0.00014853,2]
[331041975,1720031439704,-500.0,0.00014853,2]
[331041976,1720031439714,-500.0,0.00014853,2]
[331041977,1720031439724,-500.0,0.00014853,2]
[331041978,1720031439734,-500.0,0.00014853,2]
[331041979,1720031439744,-500.0,0.00014853,2]
[331041980,1720031439753,-500.0,0.00014853,2]
[331041981,1720031439763,-500.0,0.00014853,2]
[331041982,1720031439772,-500.0,0.00014853,2]
[331041983,1720031439782,-500.0,0.00014853,2]
[331041984,1720031439793,-500.0,0.00014853,2]
[331041985,1720031439803,-500.0,0.00014853,2]
[331041986,1720031439814,-500.0,0.00014853,2]
[331041987,1720031439834,-306.64991586,0.00014853,2]
[331041988,1720031439848,-500.0,0.00014853,2]
[331041989,1720031439859,-500.0,0.00014853,2]
[331041990,1720031439868,-500.0,0.00014853,2]
[331041991,1720031439879,-386.41554416,0.00014853,2]
[331041992,1720031439889,-500.0,0.00014853,2]
[331041993,1720031439900,-500.0,0.00014853,2]
[331041994,1720031439910,-500.0,0.00014853,2]
[331041995,1720031439920,-500.0,0.00014853,2]
[331041996,1720031439931,-500.0,0.00014853,2]
[331041997,1720031439941,-500.0,0.00014853,2]
[331041998,1720031439952,-500.0,0.00014853,2]
[331041999,1720031439962,-500.0,0.00014853,2]
[331042000,1720031439976,-500.0,0.00014853,2]
[331042001,1720031439986,-500.0,0.00014853,2]
[331042002,1720031439996,-500.0,0.00014853,2]
[331042003,1720031440007,-500.0,0.00014853,2]
[331042004,1720031440018,-500.0,0.00014853,2]
[331042005,1720031440028,-500.0,0.00014853,2]
[331042006,1720031440039,-500.0,0.00014853,2]
[331042007,1720031440049,-500.0,0.00014853,2]
[331042008,1720031440061,-500.0,0.00014853,2]
[331042009,1720031440072,-500.0,0.00014853,2]
[331042010,1720031440083,-500.0,0.00014853,2]
[331042011,1720031440093,-500.0,0.00014853,2]
[331042012,1720031440105,-500.0,0.00014853,2]
[331042013,1720031440116,-500.0,0.00014853,2]
[331042014,1720031440127,-500.0,0.00014853,2]
[331042015,1720031440137,-500.0,0.00014853,2]
[331042016,1720031440148,-500.0,0.00014853,2]
[331042017,1720031440158,-500.0,0.00014853,2]
[331042018,1720031440169,-500.0,0.00014853,2]
[331042019,1720031440179,-249.12305212,0.00014853,2]
[331042020,1720031440189,-500.0,0.00014853,2]
[331042021,1720031440200,-500.0,0.00014853,2]
[331042022,1720031440211,-500.0,0.00014853,2]
[331042023,1720031440220,-500.0,0.00014853,2]
[331042024,1720031440231,-500.0,0.00014853,2]
[331042025,1720031440241,-500.0,0.00014853,2]
[331042026,1720031440252,-500.0,0.00014853,2]
[331042027,1720031440262,-500.0,0.00014853,2]
[331042028,1720031440271,-500.0,0.00014853,2]
[331042029,1720031440282,-500.0,0.00014853,2]
[331042030,1720031440292,-500.0,0.00014853,2]
[331042031,1720031440303,-500.0,0.00014853,2]
[331042032,1720031440313,-500.0,0.00014853,2]
[331042033,1720031440324,-500.0,0.00014853,2]
[331042034,1720031440335,-500.0,0.00014853,2]
[331042035,1720031440347,-500.0,0.00014853,2]
[331042036,1720031440357,-252.0828494,0.00014853,2]
[331042037,1720031440367,-500.0,0.00014853,2]
[331042038,1720031440377,-500.0,0.00014853,2]
[331042039,1720031440388,-500.0,0.00014853,2]
[331042040,1720031440398,-500.0,0.00014853,2]
[331042041,1720031440408,-500.0,0.00014853,2]
[331042042,1720031440419,-500.0,0.00014853,2]
[331042043,1720031440430,-500.0,0.00014853,2]
[331042044,1720031440440,-500.0,0.00014853,2]
[331042045,1720031440450,-500.0,0.00014853,2]
[331042046,1720031440459,-500.0,0.00014853,2]
[331042049,1720031440469,-500.0,0.00014853,2]
[331042052,1720031440479,-471.80890069,0.00014853,2]
[331042056,1720031440489,-500.0,0.00014853,2]
[331042059,1720031440498,-500.0,0.00014853,2]
[331042061,1720031440508,-500.0,0.00014853,2]
[331042062,1720031440518,-500.0,0.00014853,2]
[331042064,1720031440528,-236.36564553,0.00014853,2]
[331042065,1720031440539,-500.0,0.00014855,2]
[331042066,1720031440549,-500.0,0.00014855,2]
[331042067,1720031440559,-500.0,0.00014855,2]
[331042068,1720031440569,-500.0,0.00014855,2]
[331042069,1720031440578,-4897.20535718,0.00014855,2]
[331042070,1720031440594,-2445.68691693,0.00014855,2]
[331042071,1720031440607,-18574.96021516,0.00014855,2]
[331042072,1720031440619,-730.27185591,0.00014855,2]
[331042108,1720031444013,-500.0,0.00014855,2]
[331042110,1720031444022,-2133.38874516,0.00014855,2]
[331042276,1720031447050,-506.08288205,0.00014855,2]
[331042277,1720031447060,-3178.07239551,0.00014855,2]
[331042278,1720031447069,-1674.07472244,0.00014855,2]
[331042282,1720031570920,153.0,8.374e-05,2]
[331042283,1720031747683,153.0,8.322e-05,2]
[331042286,1720031831521,3050.38460618,0.0002,120]
[331042287,1720031834287,607.8835765,0.00025,120]
[331042289,1720032018696,162.19541868,9.999e-05,4]
[331042293,1720032167860,153.0,8.204e-05,2]
[331042294,1720032349165,-155.29816351,0.0001212,2]
[331042295,1720032349186,-166.4300597,0.0001212,2]
[331042296,1720032349210,-415.7338597,0.00013855,2]
[331042297,1720032349233,-4.24630138,0.00014746,2]
[331042298,1720032428106,-154.03226753,0.00013844,2]
[331042299,1720032436092,-190.85974906,0.00013844,2]
[331042300,1720032437093,-1014.08783808,0.00013844,2]
[331042301,1720032439242,-1519.92836418,0.00013844,2]
[331042302,1720032444097,-1049.48489571,0.00013844,2]
[331042303,1720032445136,-125.23765584,0.00013844,2]
[331042304,1720032445158,-155.15425322,0.00014744,2]
[331042305,1720032445177,-300.0,0.00014745,2]
[331042306,1720032445198,-254.29297538,0.00014746,2]
[331042307,1720032448101,-151.0,0.00014746,2]
[331042309,1720032569279,219.14933167,0.000145,2]
[331042328,1720032633946,-500.0,0.000143,2]
[331042330,1720032633956,-293.70552255,0.000145,2]
[331042332,1720032633966,-648.1822395,0.00014746,2]
[331042334,1720032633978,-2741.94484494,0.00014746,2]
[331042336,1720032633989,-2144.72851797,0.00014746,2]
[331042338,1720032633999,-500.0,0.00014842,2]
[331042340,1720032634008,-527.68033913,0.00014842,2]
[331042342,1720032634018,-528.00920549,0.00014842,2]
[331042344,1720032634027,-537.60953903,0.00014843,2]
[331042346,1720032634037,-500.0,0.00014843,2]
[331042348,1720032634046,-500.0,0.00014843,2]
[331042350,1720032634056,-500.0,0.00014843,2]
[331042352,1720032634066,-131.82446804,0.00014843,2]
[331042401,1720032639802,-368.17553196,0.00014843,2]
[331042404,1720032639812,-335.59512649,0.00014843,2]
[331042407,1720032639823,-500.0,0.00014843,2]
[331042408,1720032639832,-519.62044055,0.00014843,2]
[331042409,1720032639844,-500.0,0.00014843,2]
[331042410,1720032639855,-215.92466325,0.00014843,2]
[331042411,1720032639864,-500.0,0.00014843,2]
[331042412,1720032639875,-500.0,0.00014843,2]
[331042413,1720032639886,-500.0,0.00014843,2]
[331042414,1720032639896,-500.0,0.00014843,2]
[331042415,1720032639906,-500.0,0.00014843,2]
[331042416,1720032639916,-500.0,0.00014843,2]
[331042417,1720032639928,-500.0,0.00014843,2]
[331042418,1720032639938,-500.0,0.00014843,2]
[331042419,1720032639947,-500.0,0.00014843,2]
[331042420,1720032639957,-500.0,0.00014843,2]
[331042421,1720032639967,-500.0,0.00014843,2]
[331042422,1720032639977,-133.3745318,0.00014843,2]
[331042423,1720032639989,-269.77829641,0.00014843,2]
[331042424,1720032640001,-96.84717179,0.00014843,2]
[331042425,1720032640010,-500.0,0.00014843,2]
[331042426,1720032640020,-500.0,0.00014843,2]
[331042427,1720032640029,-500.0,0.00014843,2]
[331042428,1720032640039,-500.0,0.00014843,2]
[331042430,1720032640048,-271.39070879,0.00014843,2]
[331042469,1720032643242,-228.60929121,0.00014843,2]
[331042470,1720032643251,-177.12928706,0.00014843,2]
[331042471,1720032643263,-322.87071294,0.00014843,2]
[331042472,1720032643271,-387.77095372,0.00014843,2]
[331042473,1720032643349,-112.22904628,0.00014843,2]
[331042474,1720032643358,-500.0,0.00014843,2]
[331042475,1720032643367,-500.0,0.00014843,2]
[331042476,1720032643378,-500.0,0.00014843,2]
[331042477,1720032643388,-316.58845237,0.00014843,2]
[331042478,1720032643397,-500.0,0.00014843,2]
[331042479,1720032643406,-500.0,0.00014843,2]
[331042480,1720032643415,-500.0,0.00014843,2]
[331042481,1720032643425,-500.0,0.00014843,2]
[331042482,1720032643434,-500.0,0.00014843,2]
[331042483,1720032643443,-500.0,0.00014843,2]
[331042484,1720032643452,-500.0,0.00014843,2]
[331042485,1720032643465,-500.0,0.00014843,2]
[331042486,1720032643475,-500.0,0.00014843,2]
[331042487,1720032643484,-500.0,0.00014843,2]
[331042488,1720032643493,-500.0,0.00014843,2]
[331042489,1720032643502,-500.0,0.00014843,2]
[331042490,1720032643510,-500.0,0.00014843,2]
[331042491,1720032643519,-600.0,0.00014843,2]
[331042492,1720032643528,-500.0,0.00014843,2]
[331042493,1720032643537,-1693.01926019,0.00014844,2]
[331042494,1720032643549,-681.01915666,0.00014844,2]
[331042507,1720032930905,676.37621918,9.999e-05,2]
[331042509,1720032946065,29.53229844,9.999e-05,2]
[331042510,1720032946095,705.90851762,9.999e-05,2]
[331042511,1720032946125,44.76776387,9.999e-05,2]
[331042512,1720032951780,577.04074407,9.999e-05,2]
[331042513,1720032963265,84.10000968,9.999e-05,2]
[331042514,1720032963294,440.98584248,9.999e-05,2]
[331042515,1720032972212,264.92267514,9.999e-05,2]
[331042516,1720032972241,332.33444095,9.999e-05,2]
[331042517,1720032976756,320.73678779,9.999e-05,2]
[331042518,1720032978015,52.83728888,9.999e-05,2]
[331042519,1720032978047,294.13616623,9.999e-05,2]
[331042520,1720032978083,172.86292287,9.999e-05,2]
[331042521,1720032979361,155.04678695,9.999e-05,2]
[331042522,1720032984682,521.24308374,9.999e-05,2]
[331042523,1720032985539,992.894525,9.999e-05,2]
[331042524,1720032995590,155.59454808,9.999e-05,2]
[331042525,1720032999942,165.0295606,9.999e-05,2]
[331042526,1720033000898,200.0,9.999e-05,2]
[331042527,1720033011001,177.42277369,9.999e-05,2]
[331042529,1720033016882,159.60713373,9.999e-05,2]
[331042530,1720033026457,241.15791639,9.999e-05,2]
[331042533,1720033034743,208.81152895,9.999e-05,2]
[331042535,1720033045801,155.0,9.999e-05,2]
[331042536,1720033057998,193.74688725,9.999e-05,2]
[331042537,1720033062109,229.43224339,9.999e-05,2]
[331042539,1720033065743,179.75489982,9.999e-05,2]
[331042542,1720033081155,182.56981161,9.999e-05,2]
[331042543,1720033092984,427.50730024,9.999e-05,2]
[331042544,1720033093241,156.94666191,9.999e-05,2]
[331042546,1720033099244,543.83159212,9.999e-05,2]
[331042547,1720033100548,319.47652204,9.999e-05,2]
[331042552,1720033118292,294.36312821,9.999e-05,2]
[331042553,1720033121185,246.23096351,9.999e-05,2]
[331042554,1720033128840,209.72130719,9.999e-05,2]
[331042555,1720033158630,179.55856838,9.999e-05,2]
[331042556,1720033159690,166.52926527,9.999e-05,2]
[331042557,1720033170861,307.38806947,9.999e-05,2]
[331042558,1720033190157,196.54942319,9.999e-05,2]
[331042559,1720033200641,155.92464344,9.999e-05,2]
[331042564,1720033555104,-767.89137605,0.00013769,2]
[331042567,1720033625096,-190.54901575,0.00013769,2]
[331042568,1720033625118,-746.95785822,0.00013808,2]
[331042569,1720033627194,-1330.30321478,0.00013808,2]
[331042570,1720033637140,-832.2976982,0.00013808,2]
[331042571,1720033637160,-587.7197832,0.00013817,2]
[331042572,1720033637190,-579.9825186,0.00014646,2]
[331042573,1720033647102,-174.82437806,0.00014646,2]
[331042574,1720033647164,-151.0,0.00014646,2]
[331042575,1720033651141,-22.08075238,0.00014646,2]
[331042576,1720033651163,-903.0864321,0.00014735,2]
[331042577,1720033651184,-159.08827822,0.00014736,2]
[331042578,1720033651208,-186.8627244,0.00014739,2]
[331042579,1720033651233,-300.0,0.00014832,2]
[331042580,1720033651253,-300.0,0.00014832,2]
[331042581,1720033651272,-230.40408816,0.00014833,2]
[331042582,1720033651291,-436.98018881,0.00014833,2]
[331042583,1720033651311,-500.0,0.00014833,2]
[331042584,1720033651332,-500.0,0.00014833,2]
[331042585,1720033651352,-306.82485568,0.00014833,2]
[331042586,1720033651374,-474.97653571,0.00014833,2]
[331042587,1720033651394,-500.0,0.00014833,2]
[331042588,1720033651417,-500.0,0.00014833,2]
[331042589,1720033651437,-300.67853794,0.00014833,2]
[331042590,1720033651458,-500.0,0.00014833,2]
[331042591,1720033651483,-500.0,0.00014833,2]
[331042592,1720033651504,-500.0,0.00014833,2]
[331042593,1720033651525,-500.0,0.00014833,2]
[331042594,1720033651546,-500.0,0.00014833,2]
[331042595,1720033651567,-500.0,0.00014833,2]
[331042596,1720033651589,-500.0,0.00014833,2]
[331042597,1720033651610,-200.0,0.00014833,2]
[331042598,1720033651632,-500.0,0.00014833,2]
[331042599,1720033651651,-454.92627922,0.00014833,2]
[331042600,1720033651672,-333.66719254,0.00014833,2]
[331042601,1720033651696,-484.24821161,0.00014833,2]
[331042602,1720033651720,-619.31185114,0.00014833,2]
[331042603,1720033651741,-501.16166875,0.00014833,2]
[331042604,1720033651762,-386.0638877,0.00014833,2]
[331042605,1720033651782,-308.5610459,0.00014833,2]
[331042606,1720033651807,-500.0,0.00014833,2]
[331042607,1720033651828,-500.0,0.00014833,2]
[331042608,1720033651848,-200.0,0.00014833,2]
[331042609,1720033651869,-500.0,0.00014833,2]
[331042610,1720033651890,-500.0,0.00014833,2]
[331042611,1720033651910,-500.0,0.00014833,2]
[331042612,1720033651930,-166.43296522,0.00014833,2]
[331042613,1720033651950,-500.0,0.00014833,2]
[331042614,1720033651977,-2070.1809077,0.00014834,2]
[331042616,1720033734976,-782.3820927,0.00013667,2]
[331042617,1720033746224,-398.5674834,0.00013667,2]
[331042618,1720033766112,-215.51134845,0.00014,2]
[331042664,1720033832258,-0.39519655,0.00014,2]
[331042666,1720033832269,-500.0,0.00014833,2]
[331042668,1720033832279,-511.37,0.00014833,2]
[331042670,1720033832288,-300.0,0.00014833,2]
[331042671,1720033832297,-5048.16,0.00014833,2]
[331042673,1720033832306,-500.0,0.00014835,2]
[331042675,1720033832315,-501.55710411,0.00014835,2]
[331042677,1720033832325,-631.56289185,0.00014835,2]
[331042680,1720033832334,-500.0,0.00014835,2]
[331042682,1720033832343,-500.0,0.00014835,2]
[331042683,1720033832355,-506.07459692,0.00014835,2]
[331042685,1720033832364,-500.0,0.00014835,2]
[331042688,1720033832373,-609.91944635,0.00014835,2]
[331042689,1720033832382,-500.0,0.00014835,2]
[331042691,1720033832391,-622.94,0.00014835,2]
[331042694,1720033832400,-500.0,0.00014835,2]
[331042696,1720033832409,-500.0,0.00014835,2]
[331042698,1720033832419,-500.0,0.00014835,2]
[331042700,1720033832428,-500.0,0.00014835,2]
[331042702,1720033832437,-502.01154538,0.00014835,2]
[331042704,1720033832446,-500.0,0.00014835,2]
[331042706,1720033832455,-299.8599949,0.00014835,2]
[331042708,1720033832469,-200.1400051,0.00014835,2]
[331042710,1720033832478,-504.07869845,0.00014835,2]
[331042711,1720033832487,-503.87930948,0.00014835,2]
[331042712,1720033832497,-500.0,0.00014835,2]
[331042713,1720033832506,-500.0,0.00014835,2]
[331042714,1720033832515,-504.43071686,0.00014835,2]
[331042716,1720033832524,-500.85787969,0.00014835,2]
[331042717,1720033832533,-501.85263528,0.00014835,2]
[331042718,1720033832543,-286.13695959,0.00014835,2]
[331042719,1720033832552,-500.0,0.00014835,2]
[331042720,1720033832561,-555.49,0.00014835,2]
[331042721,1720033832570,-500.0,0.00014835,2]
[331042722,1720033832580,-1131.61846099,0.00014835,2]
[331042723,1720033832591,-145.33153901,0.00014835,2]
[331042724,1720033832602,-500.0,0.00014835,2]
[331042725,1720033832611,-500.0,0.00014835,2]
[331042726,1720033832621,-500.0,0.00014835,2]
[331042727,1720033832630,-641.37,0.00014835,2]
[331042728,1720033832639,-500.0,0.00014835,2]
[331042729,1720033832648,-500.0,0.00014835,2]
[331042730,1720033832657,-472.19753753,0.00014835,2]
[331042731,1720033832667,-500.0,0.00014835,2]
[331042732,1720033832676,-500.0,0.00014835,2]
[331042733,1720033832686,-890.12,0.00014835,2]
[331042734,1720033832695,-500.0,0.00014835,2]
[331042735,1720033832705,-225.28,0.00014835,2]
[331042736,1720033832715,-794.64,0.00014835,2]
[331042737,1720033832724,-49.41605713,0.00014835,2]
[331042738,1720033832865,-450.5902221,0.00014835,2]
[331042739,1720033832875,-154.40976166,0.00014835,2]
[331042740,1720033832887,-345.59023834,0.00014835,2]
[331042741,1720033832896,-500.0,0.00014835,2]
[331042742,1720033832907,-500.0,0.00014835,2]
[331042743,1720033832917,-500.0,0.00014835,2]
[331042744,1720033832927,-500.0,0.00014835,2]
[331042745,1720033832937,-500.0,0.00014835,2]
[331042746,1720033832947,-59.71537662,0.00014835,2]
[331042832,1720033841042,-1598.93842078,0.00014735,2]
[331042834,1720033841051,-440.28462338,0.00014835,2]
[331042836,1720033841060,-500.0,0.00014835,2]
[331042838,1720033841069,-500.0,0.00014835,2]
[331042840,1720033841078,-500.0,0.00014835,2]
[331042842,1720033841087,-500.0,0.00014835,2]
[331042844,1720033841097,-500.0,0.00014835,2]
[331042846,1720033841107,-500.0,0.00014835,2]
[331042848,1720033841116,-1989.6,0.00014835,2]
[331042850,1720033841126,-498.90292921,0.00014835,2]
[331042852,1720033841135,-500.0,0.00014835,2]
[331042854,1720033841144,-500.0,0.00014835,2]
[331042856,1720033841154,-499.89984224,0.00014842,2]
[331042858,1720033841167,-500.0,0.00014842,2]
[331042860,1720033841181,-600.20356138,0.00014842,2]
[331042862,1720033841191,-194.96840538,0.00014842,2]
[331042864,1720033841200,-265.41936478,0.00014842,2]
[331042865,1720033841209,-500.0,0.00014842,2]
[331042868,1720033841219,-552.49296071,0.00014842,2]
[331042870,1720033841228,-1831.45837368,0.00014843,2]
[331042871,1720033841238,-404.03,0.00014843,2]
[331042873,1720033841247,-500.0,0.00014843,2]
[331042875,1720033841256,-500.0,0.00014843,2]
[331042877,1720033841266,-500.0,0.00014843,2]
[331042879,1720033841276,-500.0,0.00014843,2]
[331042881,1720033841285,-500.0,0.00014843,2]
[331042883,1720033841294,-500.0,0.00014843,2]
[331042885,1720033841303,-500.0,0.00014843,2]
[331042887,1720033841312,-500.0,0.00014843,2]
[331042889,1720033841322,-500.0,0.00014843,2]
[331042891,1720033841332,-501.80841656,0.00014843,2]
[331042893,1720033841342,-500.0,0.00014843,2]
[331042895,1720033841351,-500.0,0.00014843,2]
[331042897,1720033841360,-502.09040426,0.00014843,2]
[331042913,1720033841502,-511.92893088,0.00014843,2]
[331042915,1720033841512,-333.0437898,0.00014843,2]
[331042917,1720033841522,-501.68481849,0.00014843,2]
[331042919,1720033841531,-501.27846773,0.00014843,2]
[331042921,1720033841541,-500.0,0.00014843,2]
[331042923,1720033841551,-503.19769204,0.00014843,2]
[331042925,1720033841560,-501.29483592,0.00014843,2]
[331042927,1720033841570,-500.0,0.00014843,2]
[331042929,1720033841580,-500.0,0.00014843,2]
[331042930,1720033841590,-500.0,0.00014843,2]
[331042931,1720033841599,-500.0,0.00014843,2]
[331042932,1720033841608,-504.57663247,0.00014843,2]
[331042933,1720033841617,-500.0,0.00014843,2]
[331042934,1720033841627,-500.0,0.00014843,2]
[331042935,1720033841636,-500.0,0.00014843,2]
[331042936,1720033841646,-500.0,0.00014843,2]
[331042937,1720033841655,-500.0,0.00014843,2]
[331042938,1720033841668,-504.92087146,0.00014843,2]
[331042939,1720033841679,-500.0,0.00014843,2]
[331042940,1720033841688,-500.0,0.00014843,2]
[331042941,1720033841697,-500.0,0.00014843,2]
[331042942,1720033841706,-501.99730625,0.00014843,2]
[331042943,1720033841715,-500.0,0.00014843,2]
[331042944,1720033841724,-505.78636532,0.00014843,2]
[331042945,1720033841733,-500.0,0.00014843,2]
[331042946,1720033841742,-500.64130531,0.00014843,2]
[331042947,1720033841752,-502.34389929,0.00014843,2]
[331042948,1720033841768,-501.95523051,0.00014843,2]
[331042949,1720033841778,-502.93749474,0.00014843,2]
[331042950,1720033841787,-500.0,0.00014843,2]
[331042951,1720033841796,-500.0,0.00014843,2]
[331042952,1720033841807,-500.0,0.00014843,2]
[331042953,1720033841816,-500.0,0.00014843,2]
[331042954,1720033841826,-500.0,0.00014843,2]
[331042955,1720033841834,-500.0,0.00014843,2]
[331042956,1720033841846,-188.16622264,0.00014843,2]
[331042957,1720033841856,-505.1086534,0.00014843,2]
[331042958,1720033841865,-628.97659291,0.00014843,2]
[331042959,1720033841875,-337.31804948,0.00014843,2]